Cogmind - Beta 16 @@@ ROGUE MODE // 2025.12.29 @ 22:33:40 Player: tritri Result: Destroyed by Y-54 Guardian with Gatling Laser Performance ------------- Evolutions (3) 1500 Regions Visited (10) 2000 Robots Destroyed (36) 180 Value Destroyed (751) 751 Prototype IDs (28) 560 Alien Tech Used (0) 0 Bonus (1110) 1110 TOTAL SCORE: 6101 Bonus ------- Follower Combat Kills 110 Entered Garrisons 200 Used RIF Installer 500 Aligned with FarCom 300 Cogmind --------- Core Integrity 0/700 Matter 43/300 Energy 100/100 System Corruption 4% Temperature Cool (6) Movement Core (50) Location -7/Factory Parts ------- > --- POWER (1) -------- (None) > --- PROPULSION (4) --- (None) > --- UTILITY (6) ------ (None) > --- WEAPON (2) ------- (None) > --- INVENTORY (5) ---- Light Ion Engine Medium Storage Unit Rocket Launcher Field Lobotomy Kit (4) Peak State ------------ > --- POWER ------------ Deuterium Engine > --- PROPULSION ------- Flight Unit Flight Unit Flight Unit Flight Unit > --- UTILITY ---------- Visual Processing Unit Improved Sensor Array Improved Signal Interpreter Targeting Computer Targeting Computer Authchip [R/NC] > --- WEAPON ----------- Light Assault Rifle Field Lobotomy Kit > --- INVENTORY -------- Light Ion Engine Light Ion Engine Medium Storage Unit Rocket Launcher [Rating: 32] Favorites ----------- Power Ion Engine Engine Ion Engine Power Core Micro Nuclear Core Propulsion Flight Unit Leg Aluminum Leg Flight Unit Flight Unit Utility Targeting Computer Device Improved Sensor Array Storage Small Storage Unit Processor Targeting Computer Hackware Authchip [R/NC] Weapon Light Assault Rifle Energy Gun Medium Laser Ballistic Gun Light Assault Rifle Launcher Grenade Launcher Special Weapon Field Lobotomy Kit Special Melee Weapon Improved Datajack Build | -11 -10 -10 -9 -9 -9 -8 -8 -7 -7 -7 ------- Run | Yrd Mat Min Mat Min Exi Min Mat Fac Gar Fac Slots Evolved 6 | . . . 2 . . . 2 2 . . Power . | . . . . . . . . . . . Propulsion 2 | . . . 1 . . . 1 . . . Utility 4 | . . . 1 . . . 1 2 . . Weapon . | . . . . . . . . . . . Parts Attached 31 | 6 5 . 7 . 1 1 6 1 2 2 Power 6 | 1 1 . . . . 1 2 . . 1 Engine 5 | 1 1 . . . . 1 2 . . . Core 1 | . . . . . . . . . . 1 Reactor . | . . . . . . . . . . . Propulsion 11 | 2 2 . 4 . . . 3 . . . Treads . | . . . . . . . . . . . Leg 4 | 2 2 . . . . . . . . . Wheel . | . . . . . . . . . . . Hover . | . . . . . . . . . . . Flight 7 | . . . 4 . . . 3 . . . Utility 9 | 1 2 . 2 . 1 . 1 1 1 . Device 2 | . 1 . . . 1 . . . . . Storage 2 | 1 1 . . . . . . . . . Processor 4 | . . . 2 . . . 1 1 . . Hackware 1 | . . . . . . . . . 1 . Protection . | . . . . . . . . . . . Artifact . | . . . . . . . . . . . Weapon 5 | 2 . . 1 . . . . . 1 1 Energy Gun 1 | 1 . . . . . . . . . . Energy Cannon . | . . . . . . . . . . . Ballistic Gun 1 | 1 . . . . . . . . . . Ballistic Cannon . | . . . . . . . . . . . Launcher 1 | . . . 1 . . . . . . . Special Weapon 1 | . . . . . . . . . 1 . Impact Weapon . | . . . . . . . . . . . Slashing Weapon . | . . . . . . . . . . . Piercing Weapon . | . . . . . . . . . . . Special Melee Weapon 1 | . . . . . . . . . . 1 Unidentified Prototypes . | . . . . . . . . . . . Parts Lost 16 | . 1 . 5 . . 2 . . 2 6 Power 3 | . 1 . . . . 1 . . . 1 Propulsion 10 | . . . 5 . . 1 . . 1 3 Utility . | . . . . . . . . . . . Weapon 3 | . . . . . . . . . 1 2 Highest Loss Streak 3 | . 1 . 3 . . 2 . . 1 3 To Critical Strikes . | . . . . . . . . . . . Average Backups 5 | . 5 8 5 5 4 5 4 5 4 4 Power . | . . . . . 1 1 1 2 2 1 Propulsion 1 | . 3 6 4 . 1 1 . . . . Utility . | . . 1 . 2 1 1 1 1 1 1 Weapon . | . . 1 1 1 1 1 1 1 1 1 Tool/Special . | . . . . . . . . . . . Unused Backups 2 | . . . . 1 . . . . . 1 Power . | . . . . . . . . . . . Propulsion . | . . . . . . . . . . . Utility . | . . . . . . . . . . . Weapon 2 | . . . . 1 . . . . . 1 Tool/Special . | . . . . . . . . . . . Average Slot Usage (%) 84 | . 85 100 85 88 100 88 90 85 94 65 Engine 7 | . 5 14 11 11 11 10 9 7 7 4 Leg 9 | . 28 28 11 . . . . . . . Flight 14 | . . . 10 33 33 22 27 30 28 14 Device 8 | . 9 14 10 . 11 11 9 7 7 5 Storage 5 | . 14 14 7 . . . . . . . Processor 15 | . . . 12 22 22 22 26 24 30 24 Hackware 1 | . . . . . . . . . 5 5 Energy Gun 5 | . 14 14 6 . . . . . . . Ballistic Gun 9 | . 14 14 11 11 11 11 9 7 7 2 Launcher 3 | . . . 4 11 11 11 9 7 4 . Peak Build Rating 32 | 6 7 7 10 9 13 13 19 20 32 26 Average Rating 12 | 4 6 7 8 9 12 11 14 18 23 19 On Entrance 11 | . 6 7 7 9 9 13 12 17 20 22 Avg Prop Armor Cover (%) . | . . . . . . . . . . . Naked Turns 72 | . . . . . . . . . . 72 Heaviest Build 20 | 11 19 19 20 9 10 10 14 14 19 11 Greatest Support 30 | 20 20 20 30 12 12 12 17 16 16 12 Greatest Overweight (x) 6 | . . . 6 . . . 1 . 1 3 Average Overweight (x) . | . . . . . . . . . . . Largest Inventory Capacity 10 | 8 10 10 10 5 5 5 5 5 5 5 Average Capacity 6 | 6 8 10 8 5 5 5 5 5 5 5 Most Carried 8 | 1 8 8 8 5 5 5 5 5 5 5 Average Carried 5 | . 5 8 5 4 4 5 4 5 4 4 Final Capacity 10 | 8 10 10 5 5 5 5 5 5 5 5 Final Carried 8 | 1 8 8 5 5 5 5 5 5 5 4 Class Distribution -------------------- 54% | Mutant 14% | Scout 14% | Scavenger-Scout 7% | Assassin 5% | Scavenger-Mutant Dominant Class ---------------- Mutant | -10/Materials Mutant | -10/Mines Mutant | -9/Materials Mutant | -9/Mines Mutant | -9/Exiles Scout | -8/Mines Scavenger-Scout | -8/Materials Scavenger-Scout | -7/Factory Scavenger-Scout | -7/Garrison Assassin | -7/Factory Resources | -11 -10 -10 -9 -9 -9 -8 -8 -7 -7 -7 ----------- Run | Yrd Mat Min Mat Min Exi Min Mat Fac Gar Fac Matter Collected 553 | 260 61 . 181 . . 36 . . 15 . Remotely . | . . . . . . . . . . . Salvage Created 644 | . 205 . 304 15 . 50 28 . 42 . Parts 60 | . 16 . 15 7 . 8 7 . 7 . Haulers Intercepted . | . . . . . . . . . . . Recyclers Shooed . | . . . . . . . . . . . Parts Field Recycled . | . . . . . . . . . . . Retrieved Matter . | . . . . . . . . . . . Parts Self-Destructed . | . . . . . . . . . . . Prevented . | . . . . . . . . . . . Parts Restored . | . . . . . . . . . . . Kills | -11 -10 -10 -9 -9 -9 -8 -8 -7 -7 -7 ------- Run | Yrd Mat Min Mat Min Exi Min Mat Fac Gar Fac Combat Hostiles Destroyed 27 | . 8 . 6 3 . 3 4 . 3 . Guns 13 | . 8 . 4 . . . . . 1 . AOE 14 | . . . 2 3 . 3 4 . 2 . Classes Destroyed 6 | . 4 . 2 . . . . . . . Worker 4 | . 1 . 1 . . 2 . . . . Recycler 2 | . . . 2 . . . . . . . Watcher 3 | . 1 . 2 . . . . . . . Swarmer 22 | . 6 . 3 3 . 3 4 . 3 . Grunt 2 | . 2 . . . . . . . . . Sentry 3 | . . . 3 . . . . . . . Best Kill Streak 7 | . 4 . 7 3 . 5 4 . 3 . Combat Bots Only 4 | . 3 . 4 3 . 3 4 . 3 . Max Kills in Single Turn 4 | . 2 . 2 2 . 2 4 . 2 . Gunslinging 1 | . 1 . . . . . . . . . Exploded 4 | . . . 2 2 . 2 4 . 2 . Melee . | . . . . . . . . . . . Uniques/NPCs Destroyed . | . . . . . . . . . . . Combat | -11 -10 -10 -9 -9 -9 -8 -8 -7 -7 -7 -------- Run | Yrd Mat Min Mat Min Exi Min Mat Fac Gar Fac Hostile Shots Fired 269 | . 53 3 51 2 . 7 . . 23 130 Missed 98 | . 15 1 20 1 . 2 . . 4 55 Hits 171 | . 38 2 31 1 . 5 . . 19 75 Projectile 171 | . 38 2 31 1 . 5 . . 19 75 AOE 1 | . 1 . . . . . . . . . Critical Strikes 6 | . 1 1 2 . . . . . 2 . Damage Taken 1993 | . 482 32 385 7 . 80 . . 276 731 Core 867 | . 107 17 35 . . 6 . . 100 602 Absorbed by Shields 42 | . . . . . . . . . 42 . Regen/Repaired (Parts) 13 | . . . . . . . 13 . . . Core Remaining (%) 84 | 100 . 50 . . . 89 100 . . . Volleys Fired 71 | . 30 . 19 2 . 6 1 . 13 . Largest 2 | . 2 . 2 2 . 2 2 . 2 . Hottest 70 | . 70 . 70 50 . 50 50 . 50 . Shots Fired 136 | . 60 . 38 4 . 10 2 . 22 . Gun 113 | . 60 . 31 2 . 6 1 . 13 . Cannon . | . . . . . . . . . . . Launcher 22 | . . . 7 2 . 4 1 . 8 . Special 1 | . . . . . . . . . 1 . Kinetic 71 | . 30 . 19 2 . 6 1 . 13 . Thermal 42 | . 30 . 12 . . . . . . . Explosive 22 | . . . 7 2 . 4 1 . 8 . Electromagnetic . | . . . . . . . . . . . Robot Hit Streak 11 | . 11 . 5 . . 1 . . 6 . Robot Miss Streak 5 | . 5 . 3 . . 3 . . . . Penetration Max . | . . . . . . . . . . . Secondary Targets 2 | . 2 . . . . . . . . . Max Gunslinging Chain 1 | . 1 . . . . . . . . . Shots Hit Robots 64 | . 35 . 18 . . 3 . . 6 2 Core Hits 61 | . 17 . 17 3 . 8 5 . 9 2 Critical Kills . | . . . . . . . . . . . Critical Parts Destroyed . | . . . . . . . . . . . Critical Strikes 2 | . 1 . 1 . . . . . . . Burn 2 | . 1 . 1 . . . . . . . Melee Attacks 5 | . . . . . . . . . . 5 Impact . | . . . . . . . . . . . Slashing . | . . . . . . . . . . . Piercing . | . . . . . . . . . . . Sneak Attacks 1 | . . . . . . . . . . 1 Combat Hostiles . | . . . . . . . . . . . Follow-up Attacks . | . . . . . . . . . . . Damage Inflicted 1759 | . 402 . 509 145 . 330 139 . 212 22 Guns 656 | . 402 . 187 8 . 9 . . 50 . Cannons . | . . . . . . . . . . . Explosions 1068 | . . . 309 137 . 321 139 . 162 . Melee . | . . . . . . . . . . . Ramming 35 | . . . 13 . . . . . . 22 Kinetic 307 | . 151 . 89 8 . 9 . . 50 . Thermal 349 | . 251 . 98 . . . . . . . Explosive 1068 | . . . 309 137 . 321 139 . 162 . Electromagnetic . | . . . . . . . . . . . Impact . | . . . . . . . . . . . Slashing . | . . . . . . . . . . . Piercing . | . . . . . . . . . . . Highest Corruption 4 | . . . . . . . . . 4 4 Average Corruption 3 | . . . . . . . . . 3 4 Corruption Purged . | . . . . . . . . . . . Corruption Blocked . | . . . . . . . . . . . Effects 14 | . . . . . . . . . 2 12 Message Errors 6 | . . . . . . . . . . 6 Matter Fused 3 | . . . . . . . . . . 3 Heat Flow Errors 1 | . . . . . . . . . . 1 Energy Discharges 3 | . . . . . . . . . 2 1 Parts Fused 1 | . . . . . . . . . . 1 Overload Shots . | . . . . . . . . . . . Overflow Damage 26 | . . . 12 . . 14 . . . . Projectiles . | . . . . . . . . . . . Explosions 26 | . . . 12 . . 14 . . . . Melee . | . . . . . . . . . . . Knockbacks . | . . . . . . . . . . . Impact . | . . . . . . . . . . . Kinetic . | . . . . . . . . . . . Secondary . | . . . . . . . . . . . Self-Inflicted Damage 81 | . . . 31 . . 40 . . . 10 Shots 4 | . . . 3 . . 1 . . . . Rammed 5 | . . . . . . . . . . 5 Targets Rammed 7 | . . . 2 . . . . . . 5 Kicked 2 | . . . 2 . . . . . . . Crushed . | . . . . . . . . . . . Highest Temperature 258 | . 111 . 19 10 . 10 10 . 10 258 Average Temperature 34 | . 45 . 4 7 . 6 9 . 4 137 Received Heat Transfer 429 | . 126 36 120 . . . . . 9 138 Siege Activations . | . . . . . . . . . . . Martial Activations . | . . . . . . . . . . . Shielding Activations . | . . . . . . . . . . . Robots Disrupted . | . . . . . . . . . . . Combat Hostiles . | . . . . . . . . . . . Robots Corrupted . | . . . . . . . . . . . Combat Hostiles . | . . . . . . . . . . . Parts Fried . | . . . . . . . . . . . Impact Corruptions . | . . . . . . . . . . . Robots Melted . | . . . . . . . . . . . Combat Hostiles . | . . . . . . . . . . . Parts Melted 2 | . 2 . . . . . . . . . Heat Transferred 1184 | . 814 . 370 . . . . . . . Parts Sabotaged . | . . . . . . . . . . . Parts Stolen . | . . . . . . . . . . . Parts Stripped . | . . . . . . . . . . . Power Chain Reactions . | . . . . . . . . . . . Alert | -11 -10 -10 -9 -9 -9 -8 -8 -7 -7 -7 ------- Run | Yrd Mat Min Mat Min Exi Min Mat Fac Gar Fac Maximum Alert Level . | . . . . . . . . . . . Low Security (%) 100 | 100 100 100 100 100 . 100 100 100 100 100 Level 1 . | . . . . . . . . . . . Level 2 . | . . . . . . . . . . . Level 3 . | . . . . . . . . . . . Level 4 . | . . . . . . . . . . . Level 5 . | . . . . . . . . . . . High Security . | . . . . . . . . . . . Max Security . | . . . . . . . . . . . Peak Influence 196 | . 115 . 85 101 . 88 117 39 196 162 Initial 102 | . . . . 23 . . 10 39 23 102 Average 45 | . 28 . 32 80 . 58 23 33 109 59 Influence Increases 1262 | . 202 . 301 78 . 108 142 14 193 224 Destroy 0b10 Robot/C 640 | . 160 . 120 60 . 60 80 . 100 60 Destroy 0b10 Robot/NC 45 | . 10 . 25 . . 10 . . . . Destroy Leader 116 | . 32 . 44 10 . . 10 . . 20 Allied During Kill 12 | . . . . . . . . . 2 10 Successful Hack 59 | . . . 17 . . . 2 14 14 12 Anti-Garrison Action 50 | . . . . . . . . . 50 . Destroy Structure 85 | . . . 35 8 . 23 5 . 12 2 Partial Spotted 60 | . . . 15 . . . 30 . 15 . Lose Combat Pursuer 195 | . . . 45 . . 15 15 . . 120 Influence Decreases 1170 | . 202 . 241 77 61 80 83 68 30 328 Entered New Map 268 | . . . . 37 61 . 18 48 10 94 Time Decay 721 | . 202 . 192 40 . 60 65 20 . 142 Lost Part 149 | . . . 49 . . 20 . . 20 60 Lost Ally 32 | . . . . . . . . . . 32 Squads Dispatched 4 | . 1 . . . . . . . . 3 Investigation 1 | . . . . . . . . . . 1 Extermination 1 | . . . . . . . . . . 1 Reinforcement 2 | . 1 . . . . . . . . 1 Assault . | . . . . . . . . . . . Garrison . | . . . . . . . . . . . Intercept . | . . . . . . . . . . . Searches Triggered . | . . . . . . . . . . . Construction Impeded . | . . . . . . . . . . . Haulers Reinforced . | . . . . . . . . . . . Active Scanning Responses . | . . . . . . . . . . . Cargo Convoy Interrupts . | . . . . . . . . . . . Stealth | -11 -10 -10 -9 -9 -9 -8 -8 -7 -7 -7 --------- Run | Yrd Mat Min Mat Min Exi Min Mat Fac Gar Fac Distress Signals 3 | . . . 1 . . . . . . 2 Communications Jammed . | . . . . . . . . . . . Distress Signals . | . . . . . . . . . . . Times Spotted 69 | . 16 2 20 1 . 4 1 . 6 19 Peak Tracking Total 13 | . 5 2 13 1 . 4 1 . 3 7 Tactical Retreats 6 | . . . 1 . . 1 1 . . 3 Traps | -11 -10 -10 -9 -9 -9 -8 -8 -7 -7 -7 ------- Run | Yrd Mat Min Mat Min Exi Min Mat Fac Gar Fac Traps Triggered 5 | . . . . . . . . . 4 1 Indirectly . | . . . . . . . . . . . Trap Hack Attempts . | . . . . . . . . . . . Triggered . | . . . . . . . . . . . Disarmed . | . . . . . . . . . . . Reprogrammed . | . . . . . . . . . . . Reused . | . . . . . . . . . . . Traps Extracted . | . . . . . . . . . . . Installed . | . . . . . . . . . . . Triggered . | . . . . . . . . . . . Machines | -11 -10 -10 -9 -9 -9 -8 -8 -7 -7 -7 ---------- Run | Yrd Mat Min Mat Min Exi Min Mat Fac Gar Fac Machines Disabled 1 | . . . . . . . . . 1 . Max in Single Turn 1 | . . . . . . . . . 1 . Garrison Relay 1 | . . . . . . . . . 1 . Machines Repaired . | . . . . . . . . . . . Machines Dismantled . | . . . . . . . . . . . Machines Sabotaged . | . . . . . . . . . . . Overloaded Fab Kills . | . . . . . . . . . . . Hacking | -11 -10 -10 -9 -9 -9 -8 -8 -7 -7 -7 --------- Run | Yrd Mat Min Mat Min Exi Min Mat Fac Gar Fac Machines Accessed 13 | . 1 . 5 . 1 . 2 1 1 2 Terminals 10 | . 1 . 5 . . . 1 . 1 2 Fabricators . | . . . . . . . . . . . Repair Stations 1 | . . . . . . . 1 . . . Recycling Units . | . . . . . . . . . . . Scanalyzers . | . . . . . . . . . . . Garrison Access 1 | . . . . . . . . 1 . . Total Hacks 27 | . 1 . 15 . 1 . 3 2 1 4 Successful 14 | . 1 . 5 . 1 . 3 1 1 2 Failed 13 | . . . 10 . . . . 1 . 2 Catastrophic 1 | . . . . . . . . . . 1 Database Lockouts . | . . . . . . . . . . . Manual 1 | . . . . . 1 . . . . . Terminals 22 | . 1 . 15 . . . 1 . 1 4 Fabricators . | . . . . . . . . . . . Repair Stations 2 | . . . . . . . 2 . . . Recycling Units . | . . . . . . . . . . . Scanalyzers . | . . . . . . . . . . . Garrison Access 2 | . . . . . . . . 2 . . Terminal Hacks 11 | . 1 . 5 . 1 . 1 . 1 2 Record 3 | . . . 1 . . . 1 . . 1 Prototype ID Bank 3 | . . . 3 . . . . . . . Open DSF 1 | . . . . . . . . . . 1 Emergency Access Points 1 | . . . . . . . . . 1 . Locate Traps 2 | . 1 . 1 . . . . . . . Proto ID Catalog 1 | . . . . . 1 . . . . . Fabricator Hacks . | . . . . . . . . . . . Repair Station Hacks 2 | . . . . . . . 2 . . . Scan Component 1 | . . . . . . . 1 . . . Repair 1 | . . . . . . . 1 . . . Recycling Unit Hacks . | . . . . . . . . . . . Scanalyzer . | . . . . . . . . . . . Garrison Access Hacks 1 | . . . . . . . . 1 . . Unlock Access 1 | . . . . . . . . 1 . . Unauthorized Hacks . | . . . . . . . . . . . Terminals . | . . . . . . . . . . . Fabricators . | . . . . . . . . . . . Repair Stations . | . . . . . . . . . . . Recycling Units . | . . . . . . . . . . . Scanalyzers . | . . . . . . . . . . . Garrison Access . | . . . . . . . . . . . Data Cores Recovered . | . . . . . . . . . . . Used . | . . . . . . . . . . . Hacking Detections 8 | . . . 5 . . . . 1 1 1 Full Trace Events 2 | . . . 1 . . . . . . 1 Feedback Events . | . . . . . . . . . . . Feedback Blocked . | . . . . . . . . . . . Robot Schematics Acquired . | . . . . . . . . . . . Robots Built . | . . . . . . . . . . . Authchips . | . . . . . . . . . . . Time . | . . . . . . . . . . . Total Robot Build Rating . | . . . . . . . . . . . Part Schematics Acquired . | . . . . . . . . . . . Parts Built . | . . . . . . . . . . . Authchips . | . . . . . . . . . . . Time . | . . . . . . . . . . . Total Part Build Rating . | . . . . . . . . . . . Part Studies Acquired . | . . . . . . . . . . . Parts Repaired 1 | . . . . . . . 1 . . . Time 26 | . . . . . . . 26 . . . Parts Recycled . | . . . . . . . . . . . Recycled Matter . | . . . . . . . . . . . Retrieved Matter . | . . . . . . . . . . . Retrieved Components . | . . . . . . . . . . . Parts Scanalyzed . | . . . . . . . . . . . Part Schematics Acquired . | . . . . . . . . . . . Parts Damaged . | . . . . . . . . . . . Bothacking | -11 -10 -10 -9 -9 -9 -8 -8 -7 -7 -7 ------------ Run | Yrd Mat Min Mat Min Exi Min Mat Fac Gar Fac Used RIF Installer 1 | . . . . . . . . . 1 . Robots Hacked 2 | . . . . . . . . . . 2 Non-combat 2 | . . . . . . . . . . 2 Combat . | . . . . . . . . . . . Robot Hacks Applied 2 | . . . . . . . . . . 2 parse_system 1 | . . . . . . . . . . 1 ignore_repairs 1 | . . . . . . . . . . 1 Relay Couplers Released 7 | . . . . . . . . . 4 3 Machine Destruction 4 | . . . . . . . . . 4 . Programmers 3 | . . . . . . . . . . 3 Fabnet Peak Effective % . | . . . . . . . . . . . Robots Rewired . | . . . . . . . . . . . Allies Hacked . | . . . . . . . . . . . Hacks Repelled . | . . . . . . . . . . . Allies | -11 -10 -10 -9 -9 -9 -8 -8 -7 -7 -7 -------- Run | Yrd Mat Min Mat Min Exi Min Mat Fac Gar Fac Total Allies 2 | . . . . . . . . . 2 . Largest Group 2 | . . . . . . . . . 2 2 Highest-Rated Group 149 | . . . . . . . . . 149 149 Highest-Rated Ally 95 | . . . . . . . . . 95 95 Total Orders . | . . . . . . . . . . . Ally Attacks 11 | . . . . . . . . . 3 8 Total Damage 384 | . . . . . . . . . 100 284 Kills 5 | . . . . . . . . . 2 3 Allies Corrupted . | . . . . . . . . . . . Allies Melted . | . . . . . . . . . . . Field Lobotomies 1 | . . . . . . . . . 1 . Intel | -11 -10 -10 -9 -9 -9 -8 -8 -7 -7 -7 ------- Run | Yrd Mat Min Mat Min Exi Min Mat Fac Gar Fac Active Infowar (turns) 1375 | . . . 175 98 80 121 263 42 278 318 Optics 1375 | . . . 175 98 80 121 263 42 278 318 Sensors 1102 | . . . . . 80 121 263 42 278 318 Robot Analysis Total . | . . . . . . . . . . . Derelict Logs Recovered . | . . . . . . . . . . . Drone Launches . | . . . . . . . . . . . Drone Recoveries . | . . . . . . . . . . . Exploration | -11 -10 -10 -9 -9 -9 -8 -8 -7 -7 -7 ------------- Run | Yrd Mat Min Mat Min Exi Min Mat Fac Gar Fac Turns Passed 2552 | 66 640 4 570 98 80 121 263 42 278 390 Spaces Moved 3683 | 49 417 4 719 257 230 284 434 131 542 616 Core 154 | 7 . . 11 . . . . . . 136 Treads . | . . . . . . . . . . . Legs 658 | 42 417 4 195 . . . . . . . Wheels . | . . . . . . . . . . . Hover . | . . . . . . . . . . . Flight 2871 | . . . 513 257 230 284 434 131 542 480 Fastest Speed 29 | 50 120 120 34 34 34 34 29 31 31 34 Average Speed 56 | 110 120 120 69 34 34 36 38 31 34 60 Slowest Speed 350 | 120 120 120 350 34 34 37 114 31 111 200 Overloaded Moves . | . . . . . . . . . . . Propulsion Burnouts . | . . . . . . . . . . . Robots Hopped 7 | . . . . 1 . 2 1 . 2 1 Potential Cave-ins . | . . . . . . . . . . . Cave-ins Triggered . | . . . . . . . . . . . Exploration Rate (%) 37 | 3 52 3 63 65 62 61 35 4 50 18 Regions Visited 10 Branch Regions 4 Pre-discovered Areas . | . . . . . . . . . . . Known Exits Taken 1 | . . . . . . . . 1 . . Unknown Exits Taken 8 | 1 1 1 1 1 1 1 1 . . . Scrap Searched . | . . . . . . . . . . . Spaces Dug . | . . . . . . . . . . . Terrain Destroyed 117 | . . . 44 14 . 31 5 . 23 . Melee . | . . . . . . . . . . . Projectile . | . . . . . . . . . . . AOE 117 | . . . 44 14 . 31 5 . 23 . Terrain Rammed . | . . . . . . . . . . . Walls Destroyed . | . . . . . . . . . . . Machines Disabled . | . . . . . . . . . . . Actions | -11 -10 -10 -9 -9 -9 -8 -8 -7 -7 -7 --------- Run | Yrd Mat Min Mat Min Exi Min Mat Fac Gar Fac Total 3992 | 58 501 3 756 263 231 288 525 131 607 629 Wait 127 | 3 41 . 2 . . . 81 . . . Move 3658 | 48 416 3 718 254 229 279 431 130 536 614 Hop 7 | . . . . 1 . 2 1 . 2 1 Pick Up 14 | 1 7 . 2 3 1 . . . . . Fast Attach 16 | 6 1 . 1 . . 1 4 1 1 1 Attach 13 | . 1 . 8 . 1 . 1 . 1 1 Detach 4 | . . . 3 . . . . . 1 . Swap 10 | . 4 . 1 . . . 4 . . 1 Drop 7 | . 1 . . 3 . . 2 . . 1 Fire 71 | . 30 . 19 2 . 6 1 . 13 . Melee 5 | . . . . . . . . . . 5 Ram 5 | . . . . . . . . . . 5 Kick 2 | . . . 2 . . . . . . . Crush . | . . . . . . . . . . . Escape Stasis 53 | . . . . . . . . . 53 . Rewire . | . . . . . . . . . . . Trap . | . . . . . . . . . . . Miscellaneous . | . . . . . . . . . . . Route ------- -11/Scrapyard -10/Materials (discovered 2 exits: *Mat / [*Min]) -10/Mines -9/Materials (discovered 4 exits: *Mat x3 / [*Min]) -9/Mines (discovered 2 exits: *Exi / [*Zio]) -9/Exiles (discovered 2 exits: [*Min x2]) -8/Mines -8/Materials -7/Factory -7/Garrison -7/Factory History --------- Turn | Location | Event 4 | -11/Scrapyard | Discovered new exit (range 15) 67 | -11/Scrapyard | Entered Materials 307 | -10/Materials | Build established: Mutant 507 | -10/Materials | Discovered new exit (range 16) 695 | -10/Materials | Discovered new exit (range 8) 707 | -10/Materials | Entered Mines 707 | -10/Mines | Discovered new exit (range 4) 711 | -10/Mines | Entered Materials 711 | -9/Materials | Evolved 2 slots: Propulsion x1, Utility x1 1077 | -9/Materials | Lost 3 parts (3n) 1138 | -9/Materials | Discovered new exit (range 6) 1157 | -9/Materials | Discovered new exit (range 18) 1239 | -9/Materials | Discovered new exit (range 11) 1279 | -9/Materials | Discovered new exit (range 6) 1281 | -9/Materials | Entered Mines 1300 | -9/Mines | A Derelict revealed a hidden shortcut to a safe place 1357 | -9/Mines | Received a Rocket Launcher from a helpful Derelict 1377 | -9/Mines | Deemed a non-threat by the Exiles lab entrance 1377 | -9/Mines | Discovered new exit (range 5) 1379 | -9/Mines | Entered Exiles 1385 | -9/Exiles | Discovered new exit (range 16) 1389 | -9/Exiles | Met 8R-AWN 1394 | -9/Exiles | Met EX-HEX 1407 | -9/Exiles | Met EX-BIN 1411 | -9/Exiles | Aligned with FarCom system 1412 | -9/Exiles | Given EX-Vault access code 1422 | -9/Exiles | Opened EX-Vault 1426 | -9/Exiles | Found Field Lobotomy Kit 1434 | -9/Exiles | Warned to stay clear of 0b10 Research branches 1443 | -9/Exiles | Met EX-DEC 1455 | -9/Exiles | Discovered new exit (range 15) 1459 | -9/Exiles | Left Exiles lab with Field Lobotomy Kit 1459 | -9/Exiles | Entered Mines 1577 | -8/Mines | Discovered new exit (range 6) 1580 | -8/Mines | Entered Materials 1580 | -8/Materials | Evolved 2 slots: Propulsion x1, Utility x1 1618 | -8/Materials | Repaired Flight Unit 1782 | -8/Materials | Discovered new exit (range 15) 1843 | -8/Materials | Entered Factory 1843 | -7/Factory | Evolved 2 slots: Utility x2 1883 | -7/Factory | Identified exit to Garrison 1885 | -7/Factory | Entered Garrison 1917 | -7/Garrison | Installed Relay Interface Framework 2001 | -7/Garrison | Triggered checkpoint 2071 | -7/Garrison | Assimilated P-70 Sage with FLK Orb 2105 | -7/Garrison | Triggered checkpoint 2133 | -7/Garrison | Found embedded Infiltrators 2143 | -7/Garrison | Triggered checkpoint 2148 | -7/Garrison | Discovered new exit (range 10) 2151 | -7/Garrison | Identified exit to Factory 2163 | -7/Garrison | Entered Factory 2163 | -7/Factory | Accompanied by 2 allies 2189 | -7/Factory | Identified exit to DSF 2301 | -7/Factory | Lost 3 parts (1p1n1w) 2481 | -7/Factory | Released all parts (7) 2506 | -7/Factory | Lost 3 parts (2n1w) 2511 | -7/Factory | Core integrity fell below 50% 2537 | -7/Factory | Core integrity fell below 20% 2553 | -7/Factory | Destroyed by Y-54 Guardian with Gatling Laser Last Messages --------------- 02480_ W-25 Informer sends out distress signal. 02481_ Released Authchip [R/NC]. 02481_ Released Imp. Sensor Array. 02481_ Released Visual Processing Unit. 02481_ Released Targeting Computer. 02481_ Released Imp. Signal Interpreter. 02481_ Released Deuterium Engine. 02487_ ALERT: Hostiles spotted, dispatching reinforcements to Terminal F010. 02488_ Slammed into W-25 Informer. 02491_ ALERT: Potential suspicious activity detected, Programmers report to Factory Zone 4N. 02508_ Slammed into Y-54 Guardian. 02510_ W-25 Informer sends out distress signal. 02511_ Slammed into Y-54 Guardian. 02515_ GP9 9B,JDE,=&E#HKM3I=>1CVMOEV4AGT5FTSRVB 02532_ EFPGE9 RD22XMAJLNZDXRV= 02552_ M-28 Smith repairs P-60 Hacker. [Achievement: 5k Club] Map ----- +----------------------------------------------------+ | ??????? ?# """" #????????????????? | | ????????# [?# / """" #????????????????? | | ????????# ??# ##???????????????? | | ??????????# #??# #???????????????? | | ??????????# ##########/#######???????????????? | | ??????????# #??????????????????? | | ??????????+ #??????????????????? | | ??????????# #??????????????????? | | ??????????# * %= #??????############# | | ??????????# ! #??????# | | #?????????## ########## #??????# [[ | | #??????????# #????????# #??????# [! | | #??????????# #????????# #??????# | | #?########## #????????+ +??????# | | #?# # #????????# #??????# | | #?# # #????????# #??????# [ """ """ | | #?# # #????????# #??????# """ """ | | ### "" # #????????# #??????# """ """ | | / """ # #????????# #??????# | | ### F" # #????????# #??????# | | ??# """ # #????????# ######## | | ??# "" # #????????# Y # ###########+# | | ??# # #????????# g # """" #?????????# | | #########+## #????????# Yw# """" #?????????# | | #????????# # """" #?????????# | | ########+###+###########@ Y # """" ###########+# | | #??# ## # """" # = | | #??# = ## # """" # | | #??# ## /m"""" # | | #??# ! ## # p # """ """ | | #??# ## # ! # """ """ | | #??# [ ######## + """ """ | | #### #??????# # "" "" | | + #??????# # "" "" | | ######################??????# # | | # #??????????????######## | | / """" """" #?????????????????????# | | ### """" """" + ????????????????????# ! | | ??# """" """" ###???????????????????############# | | ??# """" """" #?????????????????????????????????? | | ??# #######???????????????????????????? | | ??# """" """" # #???????????????????????????? | | ??# """" """" # #???????????????????????????? | | ??# """" """" / #???????????????????????????? | | ??# """" """" # #???????????????????????????? | | ??# # #???????????????????????????? | | ??# ! # #???????????????????????????? | | ??##########+### ###################+######### | | ?? | | ?? | +----------------------------------------------------+ Best States ------------- Heat Dissipation 38 Energy Generation 15 Energy Capacity 275 Matter Stores 300 Matter Capacity 300 Sight Range 18 Robot Scan Range 15 Terrain Scan Density 10 Evasion (%) 63 Targeting Accuracy 10 Authchip Count 1 Item Schematics ----------------- None Robot Schematics ------------------ None Fabricated ------------ Nothing Repaired ---------- Flight Unit | 35% | -8/Materials Studied --------- None Alien Tech Used ----------------- None Achievements -------------- 5k Club Dramatic Entrance I Spy Join The Dark Side Made in Tau Ceti IV Novice Programmer Spot Them First Challenges ------------ None Game ------ Seed BackupLongswordRigger Manual? 0 Play Time 00:58:03 Cumulative 2.7 hours Start 2025.12.29 @ 21:12:21 End 2025.12.29 @ 22:33:40 Sessions 1 Manual Loads 0 Difficulty Rogue Special Mode None Game No. 6 Rogue 6 Adventurer 0 Explorer 0 Win Type - Total 0 Types 0/0/0/0/0/0/0/0/0/0 Lore% 6 Gallery% 3 Achievement% 6 Wizard Run 0 Options --------- Layout 1 ASCII 0 Keyboard 1 Movement Vi Keybinds 0 Fullscreen 1 Font 24/Smallcaps Map View 50x35 Zoom Use 0% Tactical HUD 1 Map Filters NONE Filters NONE Steam 1 RUN: c2e1b4f0-9372-4654-9440-f36099376407